bitfinex/quotes_ETHUSD_20260214
["timestamp","ask_amount","ask_price","bid_price","bid_amount"]
[1771053638336,1.69489233,2053.7,2053.4,0.001]
[1771053639423,0.48896667,2053.6,2053.4,0.001]
[1771053639828,1.21731508,2053.7,2053.4,0.001]
[1771053647146,0.48896667,2053.7,2053.4,0.001]
[1771053650943,1.21737436,2053.6,2053.4,0.001]
[1771053653639,1.21719655,2053.9,2053.4,0.001]
[1771053653843,0.48896667,2053.8,2053.4,0.001]
[1771053657275,1.21731508,2053.7,2053.4,0.001]
[1771053657483,1.70628175,2053.7,2053.4,0.001]
[1771053659885,0.48896667,2053.6,2053.4,0.001]
[1771053661277,0.48896667,2053.6,2053.2,0.001]
[1771053661864,1.21743364,2053.5,2053.2,0.001]
[1771053662253,1.21742044,2053.6,2053.2,0.001]
[1771053665375,1.714192,2053.6,2053.2,0.001]
[1771053668687,1.21742044,2053.6,2053.2,0.001]
[1771053669059,5.36618294,2053.7,2053.2,0.001]
[1771053677562,0.49677156,2053.6,2053.2,0.001]
[1771053680200,1.21743364,2053.5,2053.2,0.001]
[1771053689706,1.71417864,2053.6,2053.2,0.001]
[1771053704932,1.21740708,2053.6,2053.2,0.001]
[1771053705100,1.21735839,2053.7,2053.2,0.001]
[1771053705306,1.21735839,2053.7,2053.2,0.48032682]
[1771053710952,1.21735839,2053.7,2053.2,0.001]
[1771053711113,0.45495156,2053.6,2053.2,0.001]
[1771053715934,1.21743364,2053.5,2053.2,0.001]
[1771053719742,4.86952666,2053.6,2053.2,0.001]
[1771053720466,1.67228037,2053.7,2053.2,0.001]
[1771053720752,0.0011,2053.8,2053.4,13.83235885]
[1771053721621,0.0011,2053.8,2053.5,0.48154355]
[1771053722156,0.0011,2053.8,2053.7,0.48154355]
[1771053723248,0.0011,2053.8,2053.5,4.19793074]
[1771053723458,0.0011,2053.8,2053.3,1.69904358]
[1771053723651,0.0011,2053.8,2053.3,2.98054355]
[1771053723832,0.0011,2053.8,2053.3,4.19809065]
[1771053725760,1.21835581,2053.8,2053.3,2.98054355]
[1771053727927,1.71807505,2053.8,2053.3,2.499]
[1771053728125,1.71807505,2053.8,2053.3,3.71655]
[1771053728859,0.0011,2053.8,2053.4,0.48154355]
[1771053729164,0.0011,2053.8,2053.5,0.48154355]
[1771053731550,0.0011,2053.8,2053.5,1.69897333]
[1771053731966,0.0011,2053.8,2053.6,0.48154355]
[1771053735171,0.0011,2053.8,2053.3,3.7165043]
[1771053735371,0.0011,2053.8,2053.4,6.467]
[1771053740576,0.0011,2053.8,2053.4,7.68449237]
[1771053740881,0.0011,2053.8,2053.4,1.21749237]
[1771053748708,0.0011,2053.8,2053.4,6.467]
[1771053750209,0.0011,2053.8,2053.4,7.68446555]
[1771053750411,0.0011,2053.8,2053.4,1.21746555]
[1771053769121,0.50101214,2053.8,2053.4,1.21746555]
[1771053769422,0.50101214,2053.8,2053.5,2.499]
[1771053773226,0.0011,2053.8,2053.5,3.71642892]
[1771053773623,0.0011,2053.8,2053.5,4.17940048]
[1771053774502,0.0011,2053.8,2053.6,13.34760624]
[1771053774704,0.0011,2054.1,2053.9,13.34465624]
[1771053774921,0.0011,2054.1,2053.9,13.34760624]
[1771053775204,0.0011,2054.1,2053.9,14.56474376]
[1771053776732,0.0011,2054.2,2053.9,14.56284376]
[1771053780751,0.0011,2054.2,2053.9,15.02581532]
[1771053780910,0.0011,2054.4,2054.0,6.9541392]
[1771053781112,0.0011,2054.4,2054.1,2.499]
[1771053783743,0.0011,2054.4,2054.2,1.21701879]
[1771053785012,0.0011,2054.5,2054.2,1.21701879]
[1771053808181,0.0011,2054.5,2054.3,13.34760624]
[1771053810574,0.0011,2054.8,2054.4,2.498]
[1771053810866,0.0011,2054.8,2054.5,13.34760624]
[1771053813478,0.0011,2054.8,2054.6,1.21678185]
[1771053817784,0.0011,2054.8,2054.5,14.56440171]
[1771053818300,0.45949809,2054.8,2054.5,14.56444484]
[1771053820859,0.45949809,2054.8,2054.5,13.34760624]
[1771053821465,0.45949809,2054.8,2054.5,14.56444373]
[1771053821668,0.0011,2054.8,2054.5,14.56444373]
[1771053821864,0.0011,2054.9,2054.7,13.34760624]
[1771053822786,0.0011,2054.9,2054.7,14.56432038]
[1771053825082,0.0011,2054.9,2054.6,2.498]
[1771053825083,0.48977405,2054.9,2054.6,2.498]
[1771053831813,0.0011,2054.9,2054.7,13.34760624]
[1771053834985,0.0011,2054.9,2054.6,17.04653761]
[1771053837321,0.48977405,2054.9,2054.6,17.04653761]
[1771053850825,0.48977405,2054.9,2054.6,15.82976167]
[1771053851545,0.46828139,2054.8,2054.6,2.498]
[1771053854352,0.46828139,2054.8,2054.6,3.71477878]
[1771053854880,0.46828139,2054.8,2054.6,2.498]
[1771053858448,0.46828139,2054.8,2054.6,3.71477919]
[1771053858648,0.0011,2055.0,2054.7,13.33176167]
[1771053859348,0.0011,2055.2,2054.9,13.33176167]
[1771053860151,0.0011,2055.2,2054.7,13.33176167]
[1771053860452,0.46938139,2055.2,2054.8,1.21666342]
[1771053861453,0.46828139,2055.1,2054.7,1.21667622]
[1771053862482,0.46828139,2055.1,2054.6,2.498]
[1771053862688,0.46828139,2055.0,2054.6,3.71475324]
[1771053871456,0.0011,2055.2,2054.6,4.1786481]
[1771053871857,0.47884432,2055.2,2054.6,4.1786481]
[1771053872363,0.47884432,2055.2,2054.7,13.33176167]
[1771053872855,0.0011,2055.2,2054.9,13.33176167]
[1771053873060,0.0011,2055.3,2054.9,15.82976167]
[1771053874693,0.0011,2055.3,2055.0,1.21654501]
[1771053877177,0.0011,2055.3,2054.9,17.04631865]
[1771053884590,0.0011,2055.3,2055.1,13.33176167]
[1771053885772,0.47017316,2055.5,2055.1,13.33176167]
[1771053886665,0.47017316,2055.5,2055.2,1.21642662]
[1771053887001,0.47017316,2055.5,2055.2,3.71342662]
[1771053887179,0.0011,2055.5,2055.2,3.71342662]
[1771053887601,0.0011,2055.7,2055.3,13.33176167]
[1771053887805,0.0011,2055.8,2055.6,13.33176167]
[1771053887981,0.0011,2055.8,2055.4,13.33176167]
[1771053888385,0.47017316,2055.8,2055.4,13.33176167]
[1771053889204,0.47017316,2055.8,2055.4,14.54802641]
[1771053894299,0.47017316,2055.8,2055.4,17.04502641]
[1771053895015,0.47017316,2055.8,2055.4,17.03436241]
[1771053898935,0.47017316,2055.8,2055.4,17.03439742]
[1771053901545,0.0011,2055.8,2055.6,13.32109767]
[1771053902740,0.0011,2056.1,2055.6,13.32109767]
[1771053903032,0.0011,2056.1,2055.8,14.53713107]
[1771053904241,0.0011,2056.1,2055.8,13.32109767]
[1771053905835,0.0011,2056.1,2055.7,1.2160859]
[1771053906604,0.0011,2056.1,2055.7,14.53718357]
[1771053907618,0.49666788,2056.1,2055.6,3.71318948]
[1771053907814,0.49556788,2056.0,2055.6,2.497]
[1771053908336,0.49556788,2056.0,2055.6,3.71318704]
[1771053908524,0.49556788,2056.0,2055.6,2.497]
[1771053909230,0.49556788,2056.0,2055.6,3.71318397]
[1771053909434,0.49556788,2056.0,2055.6,3.71318477]
[1771053915240,2.9124459,2055.9,2055.6,2.497]
[1771053915442,0.49556788,2056.0,2055.6,3.71318989]
[1771053915641,2.91244716,2055.9,2055.6,3.71318989]
[1771053915816,0.49556788,2056.0,2055.6,3.71318989]
[1771053916016,3.40801366,2055.9,2055.4,14.53736973]
[1771053916219,0.49556788,2055.9,2055.4,17.03436973]
[1771053917041,1.21600981,2056.0,2055.4,17.03436973]
[1771053917258,2.91329347,2055.9,2055.4,17.03436973]
[1771053917451,1.71157769,2056.0,2055.4,17.03436973]
[1771053917726,2.91403879,2055.9,2055.4,17.03436973]
[1771053917917,1.71157769,2056.0,2055.4,17.03436973]
[1771053918248,3.40960611,2055.9,2055.4,17.03436973]
[1771053918547,0.49556788,2055.9,2055.4,17.03436973]
[1771053919661,0.49556788,2055.8,2055.4,15.81809767]
[1771053919824,2.91414847,2055.7,2055.4,2.497]
[1771053920148,2.91414847,2055.6,2055.4,2.497]
[1771053920329,0.49556788,2055.6,2055.3,0.001]
[1771053921251,2.91430561,2055.5,2055.3,0.001]
[1771053921554,0.49556788,2055.6,2055.3,0.001]
[1771053921718,2.91430662,2055.5,2055.3,0.001]
[1771053921918,1.71178982,2055.6,2055.3,0.001]
[1771053922130,2.91445547,2055.5,2055.3,0.001]
[1771053922350,0.49556788,2055.5,2055.3,0.001]
[1771053926251,1.71184932,2055.5,2055.3,0.001]
[1771053930620,1.21628144,2055.5,2055.3,0.001]
[1771053930826,1.21621368,2055.6,2055.3,0.001]
[1771053931022,2.91105522,2055.5,2055.4,13.32109767]
[1771053931227,1.6681976,2055.8,2055.4,13.32109767]
[1771053931440,1.21716965,2055.9,2055.4,13.32109767]
[1771053933840,0.0011,2055.9,2055.6,13.32109767]
[1771053934654,0.0011,2055.9,2055.6,13.78604001]
[1771053935931,0.0011,2055.9,2055.6,15.00219589]
[1771053936830,0.0011,2056.1,2055.6,15.00219589]
[1771053943760,0.0011,2056.1,2055.8,13.32109767]
[1771053944589,0.0011,2056.2,2055.9,0.49806208]
[1771053944751,0.0011,2056.4,2056.0,13.32109767]
[1771053945066,0.0011,2056.4,2056.0,13.81915975]
[1771053945632,0.0011,2056.4,2056.0,15.03509558]
[1771053946962,0.0011,2056.4,2056.0,13.32109767]
[1771053947865,0.0011,2056.4,2056.0,14.53703983]
[1771053948566,0.0011,2056.4,2056.0,13.32109767]
[1771053948740,0.47901395,2056.4,2056.0,13.32109767]
[1771053949978,1.69475159,2056.4,2056.0,13.32109767]
[1771053951378,0.0011,2056.4,2056.2,13.32109767]
[1771053951780,1.21562358,2056.6,2056.2,13.32109767]
[1771053954952,1.69353753,2056.6,2056.1,13.31352714]
[1771053958478,0.47791395,2056.5,2056.1,13.31352714]
[1771053962783,1.69362907,2056.5,2056.1,13.31352714]
[1771053967060,1.69362907,2056.5,2055.9,13.81158922]
[1771053976972,1.21571512,2056.5,2056.0,0.49339997]
[1771053980368,0.45114197,2056.4,2055.7,14.53065218]
[1771053980570,0.45114197,2056.4,2055.9,13.31352714]
[1771053980773,1.21571512,2056.5,2055.9,13.80692711]
[1771053981303,1.66685709,2056.5,2055.9,13.80692711]
[1771053983100,0.45114197,2056.4,2055.7,13.31452714]
[1771053984379,0.45114197,2056.4,2055.7,0.001]
[1771053984580,0.45114197,2056.3,2055.7,0.001]
[1771053984967,1.21583503,2056.2,2055.7,0.001]
[1771053985167,1.666977,2056.2,2055.7,0.001]
[1771053985478,0.45114197,2056.1,2055.7,0.001]
[1771053986965,1.2159533,2056.0,2055.7,0.001]
[1771053989183,5.31448211,2056.3,2055.7,0.001]
[1771053989494,0.45114197,2056.2,2055.7,0.001]
[1771053992003,1.21589416,2056.1,2055.7,0.001]
[1771053993881,1.69185265,2056.1,2055.7,0.001]
[1771053994213,0.47595849,2056.0,2055.7,0.001]
[1771053996186,1.21601245,2055.9,2055.7,0.001]
[1771053998009,0.47595849,2055.8,2055.7,0.001]
[1771053998203,1.21613075,2055.7,2055.6,0.001]
[1771053998916,4.86413489,2055.9,2055.6,0.001]
[1771054000979,1.21601245,2055.9,2055.6,0.001]
[1771054003407,3.71198544,2056.0,2055.6,0.001]
[1771054003980,4.18688113,2056.4,2055.7,13.80416983]
[1771054006215,0.47416435,2056.3,2055.7,13.80416983]
[1771054007521,1.21583503,2056.2,2055.7,13.80416983]
[1771054010319,1.21583503,2056.2,2055.8,0.49064269]
[1771054011113,1.68999938,2056.2,2055.6,0.49164269]
[1771054011294,1.21583503,2056.2,2055.7,13.31352714]
[1771054013093,1.21583503,2056.2,2055.6,0.49164269]
[1771054019901,0.47416435,2056.2,2055.6,0.49164269]
[1771054022200,1.21589416,2056.1,2055.6,0.49164269]
[1771054023200,0.47114518,2056.0,2055.6,0.001]
[1771054025537,1.21601245,2055.9,2055.6,0.001]
[1771054025905,1.68715763,2055.9,2055.4,0.001]
[1771054031338,1.68715763,2055.9,2055.3,0.44602391]
[1771054033637,0.47114518,2055.8,2055.2,13.32154052]
[1771054034939,0.47114518,2055.8,2055.2,13.77756443]
[1771054035135,1.21613075,2055.7,2055.2,13.77756443]
[1771054037448,1.68727593,2055.7,2055.2,0.001]
[1771054037914,0.47114518,2055.6,2055.2,0.001]
[1771054038314,1.21613075,2055.7,2055.2,0.001]
[1771054038742,1.21613075,2055.7,2055.2,0.45702391]
[1771054038937,1.21613075,2055.7,2055.3,13.77656443]
[1771054039644,3.71310698,2055.8,2055.5,13.32054052]
[1771054040618,3.71310698,2055.8,2055.5,13.77656443]
[1771054043050,3.71310698,2055.8,2055.5,13.32054052]
[1771054045255,3.71310698,2055.8,2055.3,13.77656443]
[1771054046663,3.71310698,2055.8,2055.4,0.45602391]
[1771054048725,3.71310698,2055.8,2055.3,13.32054052]
[1771054051559,3.71310698,2055.8,2055.3,13.77706319]
[1771054062076,2.497,2055.8,2055.4,0.47997696]
[1771054062263,3.71308149,2055.8,2055.4,0.47997696]
[1771054062472,1.21608149,2055.8,2055.4,0.47997696]
[1771054064278,1.2159533,2056.0,2055.4,0.47997696]
[1771054064979,1.2159533,2056.0,2055.5,13.80051748]
[1771054065160,1.2159533,2056.0,2055.6,0.47997696]
[1771054067365,1.2159533,2056.0,2055.5,13.32054052]
[1771054069873,1.70358834,2056.0,2055.4,0.47997696]
[1771054070087,0.48763504,2055.9,2055.3,15.81754052]
[1771054071377,1.2159533,2056.0,2055.3,15.81754052]
[1771054071378,1.2159533,2056.0,2055.3,16.29751748]
[1771054071582,1.70358834,2056.0,2055.3,16.29751748]
[1771054072283,0.48763504,2055.9,2055.3,16.29751748]
[1771054072485,1.2159533,2056.0,2055.4,0.47997696]
[1771054072786,1.70358834,2056.0,2055.4,0.47997696]
[1771054073364,1.70358834,2056.0,2055.3,13.32054052]
[1771054073685,0.48763504,2055.9,2055.3,13.32054052]
[1771054074684,1.2160716,2055.8,2055.3,13.32054052]
[1771054076689,1.70370664,2055.8,2055.3,13.32054052]
[1771054076988,1.70370664,2055.8,2055.2,13.80483391]
[1771054080392,0.48763504,2055.7,2055.2,0.001]
[1771054082691,1.21618992,2055.6,2055.2,0.001]
[1771054083391,1.70829457,2055.6,2055.2,0.001]
[1771054083991,0.49210465,2055.5,2055.2,0.001]
[1771054084363,1.21618992,2055.6,2055.2,0.001]
[1771054084577,1.2160716,2055.8,2055.2,13.32485695]
[1771054084875,1.70817625,2055.8,2055.2,13.32485695]
[1771054093599,1.70817625,2055.8,2055.2,0.001]
[1771054095280,0.49210465,2055.7,2055.2,0.001]
[1771054096802,4.86407443,2055.9,2055.2,0.47592743]
[1771054097287,4.86407443,2055.9,2055.3,0.47492743]
[1771054101202,0.49210465,2055.8,2055.2,0.001]
[1771054102084,0.49210465,2055.7,2055.2,0.001]
[1771054103205,1.70829457,2055.6,2055.2,0.001]
[1771054103410,0.49210465,2055.5,2055.2,0.001]
[1771054105507,1.21630826,2055.4,2055.2,0.001]
[1771054109992,4.86523304,2055.5,2055.2,0.001]
[1771054110706,1.21624908,2055.5,2055.2,0.001]
[1771054113922,1.21624908,2055.5,2055.2,0.49362522]
[1771054114217,3.71323611,2055.6,2055.2,0.49362522]
[1771054116922,3.71323611,2055.6,2055.2,0.001]
[1771054119698,3.71323611,2055.6,2055.3,0.48576407]
[1771054127666,1.21623611,2055.6,2055.3,0.48576407]
[1771054128817,1.21623611,2055.6,2055.2,0.001]
[1771054132149,4.864637,2055.7,2055.2,0.001]
[1771054143944,4.86437989,2055.8,2055.3,0.47967581]
[1771054146031,4.86437989,2055.8,2055.2,13.32693942]
[1771054146253,4.86437989,2055.8,2055.2,13.80661523]
[1771054148644,4.86437989,2055.8,2055.3,0.47967581]
[1771054150973,0.0011,2055.9,2055.6,13.32593942]
[1771054151133,0.0011,2055.9,2055.6,13.80561523]
[1771054151945,3.71405381,2056.0,2055.8,13.32593942]
[1771054151946,0.0011,2056.0,2055.8,13.32593942]
[1771054152628,0.0011,2056.0,2055.8,13.80561523]
[1771054152829,0.0011,2056.1,2055.8,13.80561523]
[1771054160180,0.0011,2056.1,2055.5,14.54215607]
[1771054161044,0.0011,2056.1,2055.5,15.02183188]
[1771054163071,1.21699416,2056.1,2055.5,15.02183188]
[1771054164656,1.21699416,2056.1,2055.6,0.47967581]
[1771054168989,0.0011,2056.1,2055.6,1.69585345]
[1771054169398,0.0011,2056.1,2055.6,0.47967581]
[1771054182907,0.48832387,2056.1,2055.5,13.32593942]
[1771054183212,0.48832387,2056.1,2055.4,2.497]
[1771054183506,0.48832387,2056.1,2055.4,2.96340394]
[1771054183707,1.2159533,2056.0,2055.4,2.96340394]
[1771054186504,0.48722387,2056.0,2055.4,2.96340394]
[1771054189413,0.48722387,2056.0,2055.4,2.497]
[1771054189414,1.21601245,2055.9,2055.4,2.497]
[1771054189609,1.21601245,2055.9,2055.4,2.96340394]
[1771054203331,0.45218319,2055.8,2055.3,0.001]
[1771054203536,1.66831394,2055.7,2055.3,0.001]
[1771054208734,1.21612653,2055.8,2055.3,0.001]
[1771054208900,1.66830972,2055.8,2055.3,0.001]
[1771054210828,1.21612653,2055.8,2055.3,0.48179841]
[1771054216008,1.21612653,2055.8,2055.3,0.001]
[1771054217326,1.66830972,2055.8,2055.3,0.001]
[1771054219029,0.45218319,2055.7,2055.3,0.001]
[1771054221229,1.66837311,2055.6,2055.3,0.001]
[1771054223712,1.21618992,2055.6,2055.3,0.001]
[1771054226229,4.86475968,2055.7,2055.3,0.001]
[1771054236057,1.21613075,2055.7,2055.3,0.46247742]
[1771054236976,3.96680767,2055.8,2055.3,0.46247742]
[1771054239577,3.96680767,2055.8,2055.3,1.67882971]
[1771054241365,3.96680767,2055.8,2055.3,0.46247742]
[1771054242345,3.96680767,2055.8,2055.4,0.47961277]
[1771054242669,1.46980767,2055.8,2055.4,0.47961277]
[1771054244172,0.25369065,2055.8,2055.5,13.32199242]
[1771054244376,0.25369065,2055.8,2055.5,13.80160519]
[1771054244570,0.0011,2055.9,2055.5,13.80160519]
[1771054244785,0.0011,2055.9,2055.6,0.47961277]
[1771054245076,2.4981,2056.0,2055.8,0.47961277]
[1771054245077,0.0011,2056.0,2055.8,0.47961277]
[1771054245250,0.0011,2056.1,2055.9,13.80160519]
[1771054247572,0.0011,2056.1,2055.9,13.32199242]
[1771054254062,0.0011,2056.4,2056.1,0.47961277]
[1771054254256,0.0011,2056.5,2056.3,13.32199242]
[1771054254462,0.0011,2056.5,2056.2,0.47961277]
[1771054255331,1.21676242,2056.5,2056.2,0.47961277]
[1771054256672,0.0011,2056.5,2056.2,0.47961277]
[1771054258904,0.49308859,2056.5,2055.9,15.81899242]
[1771054259107,0.49308859,2056.5,2055.9,17.51460856]
[1771054259505,0.0011,2056.5,2055.9,17.51460856]
[1771054260718,0.49308859,2056.5,2055.9,16.29860519]
[1771054261021,0.49198859,2056.3,2055.8,13.31651421]
[1771054261183,0.49198859,2056.3,2055.6,3.82]
[1771054261383,0.49198859,2056.3,2055.5,14.53273909]
[1771054261615,0.49198859,2056.3,2055.5,15.0117473]
[1771054262009,0.48841882,2056.2,2055.5,13.31651421]
[1771054263118,1.70431298,2056.1,2055.6,0.001]
[1771054263484,1.70431298,2056.1,2055.2,0.001]
[1771054263485,0.48841882,2055.4,2055.2,0.001]
[1771054263711,0.48841882,2055.2,2054.7,1.21771814]
[1771054263887,2.7496493,2055.5,2055.0,13.31651421]
[1771054264195,2.90733372,2055.4,2055.0,13.31651421]
[1771054264401,0.2536493,2055.5,2055.0,13.79552242]
[1771054264603,2.9065886,2055.4,2055.0,13.79552242]
[1771054264805,0.2536493,2055.5,2055.0,13.79552242]
[1771054265318,1.46994467,2055.5,2055.0,13.79552242]
[1771054265924,0.48841882,2055.2,2054.8,0.001]
[1771054267334,0.48841882,2055.4,2054.8,0.001]
[1771054273802,1.21636744,2055.3,2054.8,0.001]
[1771054274519,1.21636744,2055.3,2054.8,0.48000821]
[1771054275144,1.21634572,2055.4,2054.8,0.48000821]
[1771054275749,4.86510703,2055.5,2054.8,1.21765596]
[1771054276046,4.86510703,2055.5,2054.9,0.47900821]
[1771054277748,5.35352585,2055.5,2054.9,0.22535891]
[1771054280160,0.48841882,2055.4,2054.8,0.001]
[1771054282137,1.21636744,2055.3,2054.8,0.001]
[1771054282336,1.70478626,2055.3,2054.8,0.001]
[1771054296257,1.6878417,2055.3,2054.8,0.001]
[1771054300744,1.6878417,2055.3,2054.8,0.877]
[1771054312079,13.81255791,2055.2,2054.8,0.001]
[1771054312260,0.4960437,2055.2,2054.8,0.001]
[1771054313554,0.4960437,2054.8,2054.5,2.498]
[1771054313754,0.4960437,2054.5,2054.4,0.001]
[1771054314173,1.21690031,2054.4,2054.2,1e-08]
[1771054314373,2.92182066,2054.3,2054.0,1.598]
[1771054314577,1.21690031,2054.4,2054.0,1.598]
[1771054314782,2.91759982,2054.3,2054.0,1.598]
[1771054314984,1.71294401,2054.4,2054.0,1.598]
[1771054315180,2.917625,2054.3,2054.0,1.598]
[1771054315410,1.71294401,2054.4,2054.0,1.598]
[1771054315587,2.91512397,2054.3,2054.0,1.598]
[1771054315884,1.71294401,2054.4,2054.0,1.598]
[1771054316190,2.91512409,2054.3,2054.0,1.598]
[1771054316369,1.71294401,2054.4,2054.0,1.598]
[1771054318162,2.91204266,2054.3,2054.0,1.598]
[1771054318362,15.02945822,2054.4,2054.0,1.598]
[1771054318687,3.40663005,2054.3,2054.0,1.598]
[1771054318889,0.4960437,2054.3,2054.0,1.598]
[1771054320479,1.21689089,2054.5,2054.0,1.598]
[1771054320691,4.86692514,2054.7,2054.1,0.50047534]
[1771054320880,2.90889004,2054.6,2054.1,0.50047534]
[1771054321083,2.90889004,2054.5,2054.1,0.50047534]
[1771054321284,1.21672263,2054.7,2054.1,0.50047534]
[1771054321487,2.90828212,2054.6,2054.1,0.50047534]
[1771054321795,1.21670014,2054.8,2054.2,0.46371179]
[1771054321969,2.90825566,2054.7,2054.2,0.46371179]
[1771054322295,1.21670014,2054.8,2054.2,0.46371179]
[1771054322489,2.90788062,2054.7,2054.3,0.46371179]
[1771054322788,1.21660421,2054.9,2054.3,0.46371179]
[1771054322993,2.9078763,2054.8,2054.3,0.46371179]
[1771054323195,2.9078763,2054.7,2054.3,0.46371179]
[1771054323390,1.21660421,2054.9,2054.3,0.46371179]
[1771054323577,3.36578366,2054.8,2054.1,1.68175616]
[1771054323764,3.36578366,2054.7,2054.1,1.21804437]
[1771054323966,0.45804631,2054.7,2054.1,0.001]
[1771054324173,3.36602758,2054.6,2054.1,0.001]
[1771054324499,0.45804631,2054.6,2054.1,0.001]
[1771054324877,1.21684108,2054.5,2054.1,0.001]
[1771054325297,1.67488739,2054.5,2054.1,0.001]
[1771054326172,1.21684108,2054.5,2054.1,0.001]
[1771054326998,0.45804631,2054.7,2054.2,0.46371179]
[1771054326999,1.21672263,2054.7,2054.2,0.46371179]
[1771054327171,2.90730979,2054.6,2054.2,0.46371179]
[1771054327498,1.21672263,2054.7,2054.2,0.46371179]
[1771054327671,2.90718791,2054.6,2054.2,0.46371179]
[1771054327872,1.21672263,2054.7,2054.2,0.46371179]
[1771054328092,2.90718742,2054.6,2054.1,0.001]
[1771054328299,1.21672263,2054.7,2054.1,0.46471179]
[1771054328498,2.90713446,2054.6,2054.1,0.46471179]
[1771054328801,1.21672263,2054.7,2054.1,0.46471179]
[1771054329093,4.12394929,2054.6,2054.1,1.68178975]
[1771054329301,1.21681495,2054.6,2054.1,1.68178975]
[1771054329801,1.21681495,2054.6,2054.1,0.46471179]
[1771054330436,0.25383241,2055.4,2054.8,1.01564528]
[1771054330606,0.25383241,2055.4,2054.9,2.497]
[1771054330607,1.92819941,2055.4,2054.9,2.497]
[1771054330772,1.674367,2055.4,2054.9,2.497]
[1771054331098,1.21642662,2055.2,2054.9,2.497]
[1771054331302,0.45804631,2055.2,2054.9,2.497]
[1771054332073,0.45804631,2055.2,2054.7,0.876]
[1771054332394,0.45804631,2054.9,2054.1,0.001]
[1771054332696,3.36491916,2054.8,2054.2,2.497]
[1771054332897,0.45804631,2054.8,2054.2,2.497]
[1771054333098,1.21664977,2054.9,2054.3,0.46371179]
[1771054333289,2.90716894,2054.8,2054.4,13.80274585]
[1771054333489,1.67462674,2055.0,2054.4,13.80274585]
[1771054333702,2.90700233,2054.9,2054.4,13.80274585]
[1771054333908,1.67462674,2055.0,2054.4,13.80274585]
[1771054334100,2.90700434,2054.9,2054.4,13.80274585]
[1771054334308,1.67462674,2055.0,2054.4,13.80274585]
[1771054334479,2.907384,2054.9,2054.4,13.80274585]
[1771054334680,1.67462674,2055.0,2054.4,13.80274585]
[1771054334883,2.90738465,2054.9,2054.4,13.80274585]
[1771054335082,1.67462674,2055.0,2054.4,13.80274585]
[1771054335275,2.90762088,2054.9,2054.4,15.01962282]
[1771054335479,1.67462674,2055.0,2054.4,15.01962282]
[1771054335808,2.90779261,2054.9,2054.4,15.01962282]
[1771054336006,1.67462674,2055.0,2054.4,15.01962282]
[1771054336310,2.90779293,2054.9,2054.4,15.01962282]
[1771054336604,1.67462674,2055.0,2054.4,15.01962282]
[1771054336806,2.90823091,2054.9,2054.4,15.01962282]
[1771054337008,1.67462674,2055.0,2054.4,15.01962282]
[1771054337206,2.90823188,2054.9,2054.4,15.01962282]
[1771054337409,1.67462674,2055.0,2054.4,15.01962282]
[1771054337710,2.90870221,2054.9,2054.4,15.01962282]
[1771054338007,1.67462674,2055.0,2054.4,15.01962282]
[1771054338209,2.90870131,2054.9,2054.4,15.01962282]
[1771054338506,1.67462674,2055.0,2054.4,15.01962282]
[1771054338708,2.90920863,2054.9,2054.4,15.01962282]
[1771054339008,1.67462674,2055.0,2054.4,15.01962282]
[1771054339184,2.90920756,2054.9,2054.4,15.01962282]
[1771054339384,1.67462674,2055.0,2054.4,13.80274585]
[1771054339605,2.90975436,2054.9,2054.4,13.80274585]
[1771054339895,1.67462674,2055.0,2054.4,13.80274585]
[1771054340095,2.9097549,2054.9,2054.4,13.80274585]
[1771054340296,1.67462674,2055.0,2054.4,13.80274585]
[1771054340503,2.91034729,2054.9,2054.4,13.80274585]
[1771054340697,0.45804631,2054.9,2054.2,17.51675869]
[1771054340892,3.36861777,2054.8,2054.2,17.51675869]
[1771054341093,0.45804631,2054.8,2054.2,17.51675869]
[1771054341913,1.67472381,2054.8,2054.2,17.51675869]
[1771054343111,0.45804631,2054.7,2054.2,2.497]
[1771054343286,3.36995937,2054.7,2054.2,2.497]
[1771054343609,3.37055741,2054.6,2054.2,2.497]
[1771054343810,2.9125111,2054.5,2054.2,2.497]
[1771054344695,2.9125111,2054.5,2054.1,0.001]
[1771054345204,2.9125111,2054.5,2054.2,13.80274585]
[1771054345405,1.21672778,2054.7,2054.2,13.80274585]
[1771054345726,2.91273795,2054.6,2054.2,13.33903406]
[1771054346014,2.91273795,2054.5,2054.2,13.80274585]
[1771054346207,1.67474947,2054.8,2054.2,15.01971052]
[1771054346402,2.91289853,2054.7,2054.2,15.01971052]
[1771054346701,2.91289853,2054.6,2054.2,15.01971052]
[1771054346902,2.91289853,2054.5,2054.2,15.01971052]
[1771054347105,1.67474947,2054.8,2054.2,15.01971052]
[1771054347288,2.9130314,2054.7,2054.2,15.01971052]
[1771054347488,2.9130314,2054.6,2054.2,15.01971052]
[1771054347698,2.9130314,2054.5,2054.2,15.01971052]
[1771054347898,1.67474947,2054.8,2054.2,15.01971052]
[1771054348101,2.91307409,2054.7,2054.2,15.01971052]
[1771054348299,2.91307409,2054.6,2054.2,15.01971052]
[1771054348501,2.91307409,2054.5,2054.2,15.01971052]
[1771054348700,1.216725,2054.7,2054.2,15.01971052]
[1771054348915,2.91349802,2054.6,2054.2,15.01971052]
[1771054349099,1.216725,2054.7,2054.2,15.01971052]
[1771054349100,2.91349802,2054.5,2054.2,15.01971052]
[1771054349305,1.216725,2054.7,2054.2,15.01971052]
[1771054349503,2.9139903,2054.6,2054.2,15.01971052]
[1771054349804,2.9139903,2054.5,2054.2,13.80274585]
[1771054350011,1.216725,2054.7,2054.2,13.80274585]
[1771054350192,2.91399018,2054.6,2054.2,13.80274585]
[1771054350392,2.91399018,2054.5,2054.2,13.80274585]
[1771054350594,1.21678565,2054.6,2054.2,13.80274585]
[1771054350908,2.91408079,2054.5,2054.1,0.001]
[1771054351101,0.47481453,2054.5,2054.1,0.001]
[1771054352618,1.69169239,2054.5,2054.1,0.001]
[1771054360748,3.39111368,2054.4,2054.1,0.001]
[1771054360942,0.47689311,2054.4,2054.1,0.001]
[1771054361446,4.13235659,2054.3,2054.1,0.001]
[1771054361622,1.21696012,2054.3,2054.1,0.001]
[1771054363739,1.69383971,2054.4,2054.1,0.001]
[1771054363938,2.91590997,2054.3,2054.1,0.001]
[1771054364137,1.69383971,2054.4,2054.1,0.001]
[1771054364437,2.91597413,2054.3,2054.1,0.001]
[1771054364626,1.69383971,2054.4,2054.1,0.001]
[1771054364828,2.91597413,2054.3,2054.1,0.001]